[Event "22nd Ruzomberok Open 2019"]
[Site "Ruzomberok"]
[Date "2019.06.29"]
[Round "1.20"]
[White "Holly, Andrej"]
[Black "Kukan, Michal"]
[Result "1-0"]
[ECO "B06"]
[WhiteElo "2046"]
[BlackElo "1698"]
[Annotator "NA"]
[PlyCount "95"]
[EventDate "2019.06.29"]
[EventType "swiss"]
[EventCountry "SVK"]
[SourceTitle "playchess.com"]
[Source "ChessBase"]
[SourceQuality "1"]
[TimeControl "40/5400+30:1800+30"]

1. e4 d6 2. d4 g6 3. Nc3 Bg7 4. Bc4 Nf6 5. Qe2 {[%emt 0:01:43]} c6 {[%emt 0:01:59]} 6. e5 {[%emt 0:02:12]} dxe5 {[%emt 0:02:02]} 7. dxe5 {[%emt 0:00:44]} Nd5 {[%emt 0:00:57]} 8. Bd2 {[%emt 0:05:23]} O-O {[%emt 0:21:36]} 9. O-O-O {[%emt 0:02:28]} Be6 {[%emt 0:06:18]} 10. g4 {[%emt 0:11:21]} b5 {[%emt 0:08:38]} 11. Bb3 {[%emt 0:09:47]} a5 {[%emt 0:03:05]} 12. Nxd5 {[%emt 0:06:53]} Bxd5 {[%emt 0:01:17]} 13. Bg5 {[%emt 0:03:17]} Qc7 {[%emt 0:08:12]} 14. Bxd5 {[%emt 0:01:34]} cxd5 {[%emt 0:00:13]} 15. Rxd5 {[%emt 0:01:45]} b4 {[%emt 0:04:47]} 16. Nf3 {[%emt 0:03:37]} Rc8 {[%emt 0:01:08]} 17. Be3 {[%emt 0:05:41]} b3 {[%emt 0:02:03]} 18. axb3 {[%emt 0:05:14]} Ra6 {[%emt 0:10:02]} 19. Rc5 {[%emt 0:02:24]} Rc6 {[%emt 0:00:21]} 20. Rxc6 {[%emt 0:00:54]} Nxc6 {[%emt 0:01:31]} 21. Kb1 {[%emt 0:09:00]} Nxe5 {[%emt 0:01:00]} 22. Bf4 {[%emt 0:01:25]} Qc6 {[%emt 0:01:37]} 23. Bxe5 {[%emt 0:04:34]} Bxe5 {[%emt 0:00:57]} 24. Qxe5 {[%emt 0:03:38]} Qxc2+ {[%emt 0:04:06]} 25. Ka1 {[%emt 0:03:21]} Qxb3 {[%emt 0:00:22]} 26. Nd4 {[%emt 0:02:01]} Qa4+ {[%emt 0:02:06]} 27. Kb1 {[%emt 0:00:01]} Rc4 {[%emt 0:00:02]} 28. Rc1 {[%emt 0:04:24]} Rxc1+ {[%emt 0:01:17]} 29. Kxc1 {[%emt 0:00:01]} Qa1+ {[%emt 0:01:59]} 30. Kc2 {[%emt 0:00:17]} Qa4+ {[%emt 0:00:09]} 31. Nb3 {[%emt 0:01:30]} Qc4+ {[%emt 0:00:41]} 32. Qc3 {[%emt 0:00:02]} Qe4+ {[%emt 0:00:40]} 33. Qd3 {[%emt 0:01:37]} Qxg4 {[%emt 0:02:38]} 34. Qd8+ {[%emt 0:00:17]} Kg7 {[%emt 0:00:10]} 35. Qd4+ {[%emt 0:00:01]} Qxd4 {[%emt 0:01:06]} 36. Nxd4 {[%emt 0:00:01]} Kf6 {[%emt 0:00:06]} 37. Kd3 {[%emt 0:00:20]} e5 {[%emt 0:00:45]} 38. Nb3 {[%emt 0:00:01]} Ke6 {[%emt 0:00:50]} 39. Nxa5 {[%emt 0:00:02]} f5 {[%emt 0:00:18]} 40. Kc4 {[%emt 0:01:08]} g5 {[%emt 0:00:15]} 41. b4 {[%emt 0:30:59]} h5 {[%emt 0:30:19]} 42. b5 {[%emt 0:00:28]} h4 {[%emt 0:00:27]} 43. b6 {[%emt 0:00:18]} Kd6 {[%emt 0:00:18]} 44. b7 {[%emt 0:00:15]} Kc7 {[%emt 0:00:25]} 45. Kd5 {[%emt 0:04:19]} g4 {[%emt 0:01:25]} 46. Kxe5 {[%emt 0:00:21]} g3 {[%emt 0:00:16]} 47. fxg3 {[%emt 0:00:05]} f4 {[%emt 0:00:22]} 48. Kxf4 {[%emt 0:00:03]} 1-0

[Event "22nd Ruzomberok Open 2019"]
[Site "Ruzomberok"]
[Date "2019.06.29"]
[Round "1.21"]
[White "Staffen, Robert"]
[Black "Bartek, Ladislav"]
[Result "0-1"]
[ECO "C68"]
[WhiteElo "1683"]
[BlackElo "2042"]
[Annotator "NA"]
[PlyCount "72"]
[EventDate "2019.06.29"]
[EventType "swiss"]
[EventCountry "SVK"]
[SourceTitle "playchess.com"]
[Source "ChessBase"]
[SourceQuality "1"]
[TimeControl "40/5400+30:1800+30"]

1. e4 {[%emt 0:00:00]} e5 {[%emt 0:00:00]} 2. Nf3 {[%emt 0:00:00]} Nc6 {[%emt 0:00:00]} 3. Bb5 {[%emt 0:00:00]} a6 {[%emt 0:00:00]} 4. Bxc6 {[%emt 0:00:00]} dxc6 {[%emt 0:00:00]} 5. O-O {[%emt 0:00:07]} f6 {[%emt 0:00:08]} 6. h3 {[%emt 0:01:52]} Be6 {[%emt 0:00:11]} 7. d4 {[%emt 0:00:21]} exd4 {[%emt 0:00:36]} 8. Qxd4 {[%emt 0:01:10]} Qxd4 {[%emt 0:01:04]} 9. Nxd4 {[%emt 0:00:22]} Bc4 {[%emt 0:00:40]} 10. Re1 {[%emt 0:01:51]} O-O-O {[%emt 0:00:17]} 11. Be3 {[%emt 0:03:24]} c5 {[%emt 0:01:08]} 12. Nb3 {[%emt 0:06:50]} Bxb3 {[%emt 0:01:31]} 13. cxb3 {[%emt 0:00:36]} Bd6 {[%emt 0:00:39]} 14. Nc3 {[%emt 0:01:03]} Ne7 {[%emt 0:00:16]} 15. Rad1 {[%emt 0:03:42]} Nc6 {[%emt 0:00:44]} 16. Nd5 {[%emt 0:03:16]} Nd4 {[%emt 0:04:00]} 17. Bxd4 {[%emt 0:07:26]} cxd4 {[%emt 0:00:09]} 18. Rxd4 {[%emt 0:07:42]} c6 {[%emt 0:00:28]} 19. Rc4 {[%emt 0:00:38]} Kb8 {[%emt 0:02:22]} 20. Ne3 {[%emt 0:09:29]} Bf4 {[%emt 0:02:00]} 21. Rc2 {[%emt 0:05:44]} Rhe8 {[%emt 0:00:38]} 22. g3 {[%emt 0:02:57]} Bc7 {[%emt 0:03:06]} 23. Nc4 {[%emt 0:05:16]} b5 {[%emt 0:01:58]} 24. Ne3 {[%emt 0:02:07]} Kb7 {[%emt 0:04:32]} 25. Rec1 {[%emt 0:00:55]} Re6 {[%emt 0:03:53]} 26. Kg2 {[%emt 0:06:57]} Bb6 {[%emt 0:00:53]} 27. Nf5 {[%emt 0:05:22]} g6 {[%emt 0:01:23]} 28. Nh4 {[%emt 0:00:52]} Rxe4 {[%emt 0:03:17]} 29. Rxc6 {[%emt 0:00:18]} Re2 {[%emt 0:03:30]} 30. Rxf6 {[%emt 0:04:32]} g5 {[%emt 0:02:35]} 31. Rf7+ {[%emt 0:00:12]} Kb8 {[%emt 0:01:48]} 32. Rc6 {[%emt 0:03:08]} Bd4 {[%emt 0:01:04]} 33. Kf1 {[%emt 0:03:45]} Rxb2 {[%emt 0:01:47]} 34. Rxa6 {[%emt 0:06:36]} gxh4 {[%emt 0:00:22]} 35. Rf4 {[%emt 0:00:23]} hxg3 {[%emt 0:00:51]} 36. fxg3 {[%emt 0:01:19]} Be3 {[%emt 0:00:48]} 0-1

[Event "22nd Ruzomberok Open 2019"]
[Site "Ruzomberok"]
[Date "2019.06.29"]
[Round "1.22"]
[White "Balogh, Peter"]
[Black "Horbal, Jozef"]
[Result "1-0"]
[ECO "C13"]
[WhiteElo "2258"]
[BlackElo "1660"]
[Annotator "NA"]
[PlyCount "59"]
[EventDate "2019.06.29"]
[EventType "swiss"]
[EventCountry "SVK"]
[SourceTitle "playchess.com"]
[Source "ChessBase"]
[SourceQuality "1"]
[TimeControl "40/5400+30:1800+30"]

1. e4 {[%emt 0:00:00]} e6 {[%emt 0:00:00]} 2. d4 {[%emt 0:00:00]} d5 {[%emt 0:00:00]} 3. Nc3 {[%emt 0:00:04]} Nf6 {[%emt 0:00:44]} 4. Bg5 {[%emt 0:00:24]} Be7 {[%emt 0:00:23]} 5. e5 {[%emt 0:00:12]} Nfd7 {[%emt 0:00:27]} 6. h4 {[%emt 0:00:25]} h6 {[%emt 0:00:15]} 7. Be3 {[%emt 0:00:11]} c5 {[%emt 0:09:06]} 8. Qg4 {[%emt 0:02:12]} Kf8 9. f4 cxd4 {[%emt 0:08:52]} 10. Bxd4 {[%emt 0:00:40]} Nc6 {[%emt 0:00:49]} 11. Nf3 {[%emt 0:00:28]} Nxd4 {[%emt 0:00:51]} 12. Nxd4 {[%emt 0:00:10]} Qb6 {[%emt 0:00:31]} 13. O-O-O {[%emt 0:00:27]} Bc5 {[%emt 0:07:16]} 14. Nb3 {[%emt 0:02:16]} Be3+ {[%emt 0:01:02]} 15. Kb1 {[%emt 0:00:07]} a5 {[%emt 0:03:12]} 16. a4 {[%emt 0:00:17]} Qb4 {[%emt 0:02:53]} 17. Bb5 {[%emt 0:03:59]} Qxf4 {[%emt 0:04:13]} 18. Qe2 {[%emt 0:00:49]} Qf2 {[%emt 0:10:05]} 19. Qg4 {[%emt 0:02:46]} Nxe5 {[%emt 0:09:48]} 20. Qh3 {[%emt 0:00:40]} Bf4 {[%emt 0:02:20]} 21. Ne2 {[%emt 0:09:25]} g5 {[%emt 0:05:45]} 22. Rhf1 {[%emt 0:11:21]} Qb6 {[%emt 0:04:51]} 23. Nxf4 {[%emt 0:01:29]} gxf4 {[%emt 0:00:34]} 24. Rxf4 {[%emt 0:00:56]} Bd7 {[%emt 0:01:36]} 25. Qc3 {[%emt 0:02:16]} d4 {[%emt 0:03:19]} 26. Rfxd4 {[%emt 0:03:43]} Bxb5 {[%emt 0:01:18]} 27. Rd6 {[%emt 0:00:50]} Bc6 {[%emt 0:03:44]} 28. Qxe5 {[%emt 0:00:29]} Ke7 {[%emt 0:00:28]} 29. Nd4 {[%emt 0:00:55]} Rhd8 {[%emt 0:00:26]} 30. Nf5+ {[%emt 0:00:32]} 1-0

[Event "22nd Ruzomberok Open 2019"]
[Site "Ruzomberok"]
[Date "2019.06.29"]
[Round "1.23"]
[White "Cernekova, Martina"]
[Black "Palider, Pavol"]
[Result "0-1"]
[ECO "D31"]
[WhiteElo "1659"]
[BlackElo "2026"]
[Annotator "NA"]
[PlyCount "102"]
[EventDate "2019.06.29"]
[EventType "swiss"]
[EventCountry "SVK"]
[SourceTitle "playchess.com"]
[Source "ChessBase"]
[SourceQuality "1"]
[TimeControl "40/5400+30:1800+30"]

1. d4 {[%emt 0:00:00]} e6 {[%emt 0:00:00]} 2. c4 {[%emt 0:00:00]} d5 {[%emt 0:00:21]} 3. Nc3 {[%emt 0:00:00]} c6 {[%emt 0:00:24]} 4. Nf3 {[%emt 0:00:37]} Nd7 {[%emt 0:00:24]} 5. e4 {[%emt 0:00:26]} dxc4 {[%emt 0:01:43]} 6. Bxc4 {[%emt 0:00:09]} Ngf6 {[%emt 0:00:19]} 7. Bg5 {[%emt 0:00:30]} Be7 {[%emt 0:00:13]} 8. e5 {[%emt 0:01:23]} Nd5 {[%emt 0:00:15]} 9. Bxe7 {[%emt 0:00:14]} Qxe7 {[%emt 0:00:42]} 10. O-O {[%emt 0:00:50]} Nxc3 {[%emt 0:01:16]} 11. bxc3 {[%emt 0:00:10]} O-O {[%emt 0:00:16]} 12. Bd3 {[%emt 0:00:49]} Rd8 {[%emt 0:03:50]} 13. Qc2 {[%emt 0:00:43]} Nf8 {[%emt 0:00:16]} 14. Rfe1 {[%emt 0:01:52]} b6 {[%emt 0:01:22]} 15. Be4 {[%emt 0:01:00]} Bb7 {[%emt 0:01:16]} 16. Re3 {[%emt 0:01:21]} Rdc8 {[%emt 0:00:28]} 17. Qd3 {[%emt 0:01:06]} c5 {[%emt 0:00:22]} 18. Nd2 {[%emt 0:02:30]} cxd4 {[%emt 0:01:28]} 19. cxd4 {[%emt 0:00:42]} Bd5 {[%emt 0:00:36]} 20. Bxd5 {[%emt 0:00:45]} exd5 {[%emt 0:00:12]} 21. Rh3 {[%emt 0:00:44]} h6 {[%emt 0:01:35]} 22. Nf3 {[%emt 0:01:51]} Rc4 {[%emt 0:03:34]} 23. Nh4 {[%emt 0:00:59]} Rac8 {[%emt 0:00:53]} 24. g3 {[%emt 0:03:10]} Ne6 {[%emt 0:07:16]} 25. Nf5 {[%emt 0:01:12]} Qg5 {[%emt 0:01:02]} 26. Rh4 {[%emt 0:10:51]} Rc3 {[%emt 0:01:16]} 27. Nxh6+ {[%emt 0:05:06]} gxh6 {[%emt 0:01:00]} 28. Qa6 {[%emt 0:02:25]} Rc1+ {[%emt 0:02:17]} 29. Rxc1 {[%emt 0:00:16]} Qxc1+ {[%emt 0:00:47]} 30. Kg2 {[%emt 0:00:10]} Rc7 {[%emt 0:02:53]} 31. Rg4+ {[%emt 0:01:13]} Kf8 {[%emt 0:00:59]} 32. Qd3 {[%emt 0:01:22]} Ng5 {[%emt 0:03:09]} 33. h4 {[%emt 0:00:41]} Ne4 {[%emt 0:00:42]} 34. Qb3 {[%emt 0:01:54]} Qc4 {[%emt 0:06:04]} 35. Qa3+ {[%emt 0:01:14]} Ke8 {[%emt 0:00:13]} 36. Rg8+ {[%emt 0:00:17]} Kd7 {[%emt 0:00:17]} 37. Qf8 {[%emt 0:00:45]} Kc6 {[%emt 0:00:42]} 38. Qxh6+ {[%emt 0:01:13]} Kb5 {[%emt 0:01:55]} 39. Qe3 {[%emt 0:01:41]} Qxa2 {[%emt 0:01:17]} 40. Rd8 {[%emt 0:02:18]} Rc3 {[%emt 0:01:03]} 41. Qf4 {[%emt 0:31:42]} Rc2 {[%emt 0:30:30]} 42. Qe3 {[%emt 0:02:23]} Nxf2 {[%emt 0:01:35]} 43. Kf3 {[%emt 0:00:36]} Qc4 {[%emt 0:02:36]} 44. Kf4 {[%emt 0:01:13]} Ne4 {[%emt 0:01:30]} 45. Kg4 {[%emt 0:01:21]} Rc3 {[%emt 0:00:53]} 46. Qe1 {[%emt 0:00:42]} Rxg3+ {[%emt 0:00:28]} 47. Kh5 {[%emt 0:00:27]} Rb3 {[%emt 0:02:41]} 48. Qa1 {[%emt 0:00:58]} a5 {[%emt 0:01:15]} 49. Qg1 {[%emt 0:00:31]} Ng3+ {[%emt 0:01:49]} 50. Kg5 {[%emt 0:01:00]} Qc6 {[%emt 0:00:39]} 51. Rd6 {[%emt 0:00:53]} Ne4+ {[%emt 0:00:16]} 0-1

[Event "22nd Ruzomberok Open 2019"]
[Site "Ruzomberok"]
[Date "2019.06.29"]
[Round "1.24"]
[White "Viczencz, Peter"]
[Black "Demko, Ladislav"]
[Result "1-0"]
[ECO "B32"]
[WhiteElo "2014"]
[BlackElo "1642"]
[Annotator "NA"]
[PlyCount "107"]
[EventDate "2019.06.29"]
[EventType "swiss"]
[EventCountry "SVK"]
[SourceTitle "playchess.com"]
[Source "ChessBase"]
[SourceQuality "1"]
[TimeControl "40/5400+30:1800+30"]

1. e4 {[%emt 0:00:00]} c5 {[%emt 0:00:00]} 2. Nf3 {[%emt 0:00:00]} Nc6 {[%emt 0:00:00]} 3. d4 {[%emt 0:00:00]} cxd4 {[%emt 0:00:00]} 4. Nxd4 {[%emt 0:00:00]} d6 {[%emt 0:00:24]} 5. Be3 {[%emt 0:01:22]} Nf6 {[%emt 0:00:35]} 6. f3 {[%emt 0:00:11]} a6 {[%emt 0:00:14]} 7. Nc3 {[%emt 0:00:25]} e6 {[%emt 0:00:22]} 8. f4 {[%emt 0:03:48]} Be7 {[%emt 0:01:15]} 9. Bd3 {[%emt 0:01:04]} e5 {[%emt 0:00:16]} 10. Nf5 {[%emt 0:00:47]} Bxf5 {[%emt 0:05:54]} 11. exf5 {[%emt 0:00:28]} d5 {[%emt 0:00:07]} 12. fxe5 {[%emt 0:02:40]} Nxe5 {[%emt 0:00:36]} 13. Bd4 {[%emt 0:02:02]} Nc6 {[%emt 0:00:38]} 14. Bf2 {[%emt 0:00:35]} O-O {[%emt 0:00:34]} 15. O-O {[%emt 0:00:41]} Qd7 {[%emt 0:01:36]} 16. Qf3 {[%emt 0:02:08]} Ne5 {[%emt 0:00:21]} 17. Qe2 {[%emt 0:02:37]} Nxd3 {[%emt 0:03:06]} 18. Qxd3 {[%emt 0:00:06]} Qc6 {[%emt 0:02:26]} 19. Ne2 {[%emt 0:06:15]} Bc5 {[%emt 0:01:36]} 20. Nd4 {[%emt 0:03:58]} Qb6 {[%emt 0:00:26]} 21. Kh1 {[%emt 0:05:15]} Bxd4 {[%emt 0:01:42]} 22. Bxd4 {[%emt 0:00:08]} Qc6 {[%emt 0:00:32]} 23. c3 {[%emt 0:00:40]} Rfe8 {[%emt 0:00:46]} 24. Bxf6 {[%emt 0:02:24]} gxf6 {[%emt 0:00:27]} 25. Rad1 {[%emt 0:04:37]} Re5 {[%emt 0:01:28]} 26. Rf4 {[%emt 0:00:19]} Rae8 {[%emt 0:00:30]} 27. Rdf1 {[%emt 0:02:05]} Re2 {[%emt 0:00:43]} 28. Qh3 {[%emt 0:03:34]} R8e3 {[%emt 0:00:20]} 29. Rg4+ {[%emt 0:17:51]} Kf8 {[%emt 0:00:09]} 30. Qh6+ {[%emt 0:00:11]} Ke7 {[%emt 0:00:04]} 31. Rg8 {[%emt 0:00:17]} Kd6 {[%emt 0:00:46]} 32. Qxf6+ {[%emt 0:00:21]} Kc5 {[%emt 0:00:52]} 33. Qd4+ {[%emt 0:00:37]} Kd6 {[%emt 0:00:43]} 34. Rd8+ {[%emt 0:00:12]} Kc7 {[%emt 0:00:40]} 35. Rxd5 {[%emt 0:00:14]} Re4 {[%emt 0:02:06]} 36. Qd3 {[%emt 0:01:25]} Kb8 {[%emt 0:00:42]} 37. h3 {[%emt 0:05:50]} R2e3 {[%emt 0:02:51]} 38. Rd8+ {[%emt 0:01:29]} Ka7 {[%emt 0:00:25]} 39. Qd5 {[%emt 0:00:25]} Qxd5 {[%emt 0:03:33]} 40. Rxd5 {[%emt 0:00:09]} Re2 {[%emt 0:00:02]} 41. Rd7 {[%emt 0:30:18]} Rxb2 {[%emt 0:30:23]} 42. Rxf7 {[%emt 0:00:06]} Rxa2 {[%emt 0:00:14]} 43. Rb1 {[%emt 0:01:38]} a5 {[%emt 0:01:02]} 44. Rfxb7+ {[%emt 0:00:50]} Ka8 {[%emt 0:00:55]} 45. f6 {[%emt 0:00:06]} Rf2 46. Rb8+ Ka7 {[%emt 0:04:55]} 47. R1b7+ {[%emt 0:01:58]} Ka6 {[%emt 0:00:40]} 48. Rb3 {[%emt 0:00:05]} Ka7 {[%emt 0:00:16]} 49. R8b7+ {[%emt 0:00:05]} Ka8 {[%emt 0:01:09]} 50. f7 {[%emt 0:00:08]} Ref4 {[%emt 0:01:08]} 51. R7b5 {[%emt 0:00:31]} Rxf7 {[%emt 0:00:14]} 52. Rxa5+ {[%emt 0:00:06]} Ra7 {[%emt 0:00:03]} 53. Rxa7+ {[%emt 0:00:23]} Kxa7 {[%emt 0:00:07]} 54. Kh2 {[%emt 0:00:07]} 1-0

[Event "22nd Ruzomberok Open 2019"]
[Site "Ruzomberok"]
[Date "2019.06.29"]
[Round "1.26"]
[White "Bakalar, Jan"]
[Black "Taragel, Marian"]
[Result "1/2-1/2"]
[ECO "D02"]
[WhiteElo "1969"]
[BlackElo "1636"]
[Annotator "NA"]
[PlyCount "54"]
[EventDate "2019.06.29"]
[EventType "swiss"]
[EventCountry "SVK"]
[SourceTitle "playchess.com"]
[Source "ChessBase"]
[SourceQuality "1"]
[TimeControl "40/5400+30:1800+30"]

1. d4 {[%emt 0:00:00]} d5 {[%emt 0:00:01]} 2. Nf3 {[%emt 0:00:00]} Nf6 {[%emt 0:01:33]} 3. g3 {[%emt 0:00:00]} c6 {[%emt 0:02:35]} 4. Bg2 {[%emt 0:00:00]} Bg4 {[%emt 0:01:42]} 5. Ne5 {[%emt 0:00:46]} Bf5 {[%emt 0:02:17]} 6. O-O {[%emt 0:00:36]} Nbd7 {[%emt 0:02:54]} 7. f4 {[%emt 0:00:48]} e6 {[%emt 0:03:00]} 8. Nc3 {[%emt 0:04:44]} Be7 {[%emt 0:01:59]} 9. h3 {[%emt 0:00:19]} Nxe5 {[%emt 0:04:27]} 10. fxe5 {[%emt 0:03:33]} Nd7 {[%emt 0:01:21]} 11. e4 {[%emt 0:02:24]} dxe4 {[%emt 0:02:10]} 12. Nxe4 {[%emt 0:00:06]} O-O {[%emt 0:01:43]} 13. c3 {[%emt 0:01:52]} Qb6 {[%emt 0:01:43]} 14. Qb3 {[%emt 0:04:40]} Rfd8 {[%emt 0:05:23]} 15. Be3 {[%emt 0:03:41]} Qc7 {[%emt 0:02:28]} 16. Ng5 {[%emt 0:03:17]} Bxg5 {[%emt 0:03:05]} 17. Bxg5 {[%emt 0:02:55]} Re8 {[%emt 0:02:30]} 18. Rad1 {[%emt 0:00:55]} h6 {[%emt 0:01:22]} 19. Bc1 {[%emt 0:02:19]} Rac8 {[%emt 0:04:22]} 20. g4 {[%emt 0:00:44]} Bh7 {[%emt 0:00:43]} 21. g5 {[%emt 0:02:30]} hxg5 {[%emt 0:01:29]} 22. Bxg5 {[%emt 0:00:15]} b6 {[%emt 0:02:44]} 23. Rd2 {[%emt 0:02:28]} c5 {[%emt 0:01:43]} 24. Qd1 {[%emt 0:01:09]} cxd4 {[%emt 0:01:43]} 25. cxd4 {[%emt 0:05:15]} Qc4 {[%emt 0:12:05]} 26. Bb7 {[%emt 0:00:52]} Rc7 27. Qf3 {[%emt 0:07:01]} Bg6 {[%emt 0:03:15]} 1/2-1/2

[Event "22nd Ruzomberok Open 2019"]
[Site "Ruzomberok"]
[Date "2019.06.29"]
[Round "1.27"]
[White "Kunzo, Slavomir"]
[Black "Baleja, Marian"]
[Result "0-1"]
[ECO "D50"]
[WhiteElo "1593"]
[BlackElo "1951"]
[Annotator "NA"]
[PlyCount "74"]
[EventDate "2019.06.29"]
[EventType "swiss"]
[EventCountry "SVK"]
[SourceTitle "playchess.com"]
[Source "ChessBase"]
[SourceQuality "1"]
[TimeControl "40/5400+30:1800+30"]

1. c4 {[%emt 0:00:00]} Nf6 {[%emt 0:00:00]} 2. d4 {[%emt 0:04:23]} e6 {[%emt 0:00:05]} 3. Nc3 {[%emt 0:07:19]} d5 {[%emt 0:01:51]} 4. Bg5 {[%emt 0:01:25]} Bb4 {[%emt 0:00:24]} 5. e3 {[%emt 0:05:38]} h6 {[%emt 0:03:15]} 6. Bh4 {[%emt 0:01:02]} O-O {[%emt 0:07:11]} 7. Bd3 {[%emt 0:02:57]} c6 {[%emt 0:07:01]} 8. Nge2 {[%emt 0:01:00]} Nbd7 {[%emt 0:00:46]} 9. O-O {[%emt 0:01:36]} Re8 {[%emt 0:05:08]} 10. e4 {[%emt 0:04:48]} dxe4 {[%emt 0:02:59]} 11. Nxe4 {[%emt 0:01:55]} Be7 {[%emt 0:00:39]} 12. Bg3 {[%emt 0:04:26]} b6 {[%emt 0:13:36]} 13. Rc1 {[%emt 0:06:48]} Nf8 {[%emt 0:15:43]} 14. Nxf6+ {[%emt 0:06:36]} Bxf6 {[%emt 0:00:10]} 15. b4 {[%emt 0:04:52]} Bb7 {[%emt 0:09:27]} 16. Be4 {[%emt 0:03:25]} e5 {[%emt 0:18:30]} 17. d5 {[%emt 0:03:57]} cxd5 {[%emt 0:00:38]} 18. cxd5 {[%emt 0:00:42]} Rc8 {[%emt 0:07:21]} 19. Qd3 {[%emt 0:03:21]} Bg5 {[%emt 0:02:07]} 20. f4 {[%emt 0:02:02]} Rxc1 {[%emt 0:02:08]} 21. Rxc1 {[%emt 0:03:19]} exf4 {[%emt 0:00:00]} 22. Bxf4 {[%emt 0:00:48]} Bxf4 {[%emt 0:00:01]} 23. Nxf4 {[%emt 0:00:04]} Qd6 {[%emt 0:01:32]} 24. Qd4 {[%emt 0:03:14]} Nd7 {[%emt 0:00:46]} 25. Rf1 {[%emt 0:05:09]} Nf6 {[%emt 0:00:08]} 26. Bf3 {[%emt 0:02:11]} Re5 {[%emt 0:00:54]} 27. Rd1 {[%emt 0:05:25]} Rf5 {[%emt 0:00:01]} 28. Ne2 {[%emt 0:02:52]} g5 {[%emt 0:00:42]} 29. Qd3 {[%emt 0:01:36]} Re5 {[%emt 0:00:33]} 30. g4 {[%emt 0:00:49]} Qxb4 {[%emt 0:00:26]} 31. Qc3 {[%emt 0:03:46]} Qxc3 {[%emt 0:00:27]} 32. Nxc3 {[%emt 0:00:04]} Re3 {[%emt 0:00:25]} 33. d6 {[%emt 0:00:50]} Bxf3 {[%emt 0:00:43]} 34. Nd5 {[%emt 0:00:52]} Bxd5 {[%emt 0:00:40]} 35. Rxd5 {[%emt 0:00:09]} Nd7 {[%emt 0:00:18]} 36. a4 {[%emt 0:01:57]} Kf8 {[%emt 0:00:20]} 37. a5 {[%emt 0:00:21]} Re5 {[%emt 0:00:17]} 0-1

[Event "22nd Ruzomberok Open 2019"]
[Site "Ruzomberok"]
[Date "2019.06.29"]
[Round "1.28"]
[White "Druska, Robert"]
[Black "Cebo, Vladimir"]
[Result "1-0"]
[ECO "B30"]
[WhiteElo "1918"]
[BlackElo "1577"]
[Annotator "NA"]
[PlyCount "71"]
[EventDate "2019.06.29"]
[EventType "swiss"]
[EventCountry "SVK"]
[SourceTitle "playchess.com"]
[Source "ChessBase"]
[SourceQuality "1"]
[TimeControl "40/5400+30:1800+30"]

1. e4 {[%emt 0:00:00]} c5 {[%emt 0:00:00]} 2. Nf3 {[%emt 0:00:03]} Nc6 {[%emt 0:00:13]} 3. d3 {[%emt 0:00:14]} e6 {[%emt 0:01:11]} 4. g3 {[%emt 0:01:01]} Be7 {[%emt 0:00:23]} 5. Bg2 {[%emt 0:00:26]} d6 {[%emt 0:00:37]} 6. O-O {[%emt 0:00:35]} Nf6 {[%emt 0:00:39]} 7. c3 {[%emt 0:00:32]} O-O {[%emt 0:00:46]} 8. Na3 {[%emt 0:01:29]} a6 {[%emt 0:00:59]} 9. h3 {[%emt 0:00:33]} Rb8 {[%emt 0:02:01]} 10. Nh2 {[%emt 0:01:38]} Ne5 {[%emt 0:02:03]} 11. f4 {[%emt 0:01:25]} Ng6 {[%emt 0:02:18]} 12. h4 {[%emt 0:04:38]} h6 {[%emt 0:11:21]} 13. Nc2 {[%emt 0:04:34]} b5 {[%emt 0:00:59]} 14. Ne3 {[%emt 0:01:40]} Bb7 {[%emt 0:03:33]} 15. h5 {[%emt 0:07:00]} Nh8 {[%emt 0:00:21]} 16. e5 {[%emt 0:01:51]} dxe5 {[%emt 0:01:27]} 17. fxe5 {[%emt 0:02:24]} Nd5 {[%emt 0:00:56]} 18. Neg4 {[%emt 0:00:46]} f5 {[%emt 0:02:25]} 19. Nxh6+ {[%emt 0:04:53]} Kh7 {[%emt 0:03:02]} 20. Qd2 {[%emt 0:01:15]} Qc7 {[%emt 0:03:14]} 21. Nf3 {[%emt 0:06:06]} gxh6 {[%emt 0:04:57]} 22. Qxh6+ {[%emt 0:00:22]} Kg8 {[%emt 0:00:03]} 23. Qxe6+ {[%emt 0:03:37]} Rf7 {[%emt 0:00:48]} 24. Bh3 {[%emt 0:11:10]} Qd8 {[%emt 0:00:59]} 25. Qh6 {[%emt 0:05:30]} Nxc3 {[%emt 0:05:15]} 26. bxc3 {[%emt 0:01:56]} Qxd3 {[%emt 0:00:18]} 27. Bg2 {[%emt 0:05:08]} Qc4 {[%emt 0:02:26]} 28. Bf4 {[%emt 0:05:57]} Re8 {[%emt 0:10:25]} 29. Nd2 {[%emt 0:05:44]} Qxc3 {[%emt 0:15:00]} 30. Bxb7 {[%emt 0:01:12]} Rh7 {[%emt 0:01:20]} 31. Bd5+ {[%emt 0:01:12]} Nf7 {[%emt 0:00:39]} 32. Qg6+ {[%emt 0:01:06]} Rg7 {[%emt 0:00:43]} 33. Bxf7+ {[%emt 0:00:25]} Kf8 {[%emt 0:00:23]} 34. Bh6 {[%emt 0:00:36]} Qxg3+ {[%emt 0:01:56]} 35. Qxg3 {[%emt 0:00:19]} Kxf7 {[%emt 0:00:12]} 36. Qxg7+ {[%emt 0:00:14]} 1-0

[Event "22nd Ruzomberok Open 2019"]
[Site "Ruzomberok"]
[Date "2019.06.29"]
[Round "1.29"]
[White "Slivka, Vasil"]
[Black "Koloditsova, Renata"]
[Result "0-1"]
[ECO "D38"]
[WhiteElo "1562"]
[BlackElo "1903"]
[Annotator "NA"]
[PlyCount "50"]
[EventDate "2019.06.29"]
[EventType "swiss"]
[EventCountry "SVK"]
[SourceTitle "playchess.com"]
[Source "ChessBase"]
[SourceQuality "1"]
[TimeControl "40/5400+30:1800+30"]

1. Nf3 d5 2. d4 e6 3. c4 Nf6 4. Nc3 Bb4 5. Bg5 {[%emt 0:02:38]} h6 {[%emt 0:02:42]} 6. Bxf6 {[%emt 0:00:41]} Qxf6 {[%emt 0:00:29]} 7. cxd5 {[%emt 0:00:13]} exd5 {[%emt 0:00:35]} 8. a3 {[%emt 0:00:21]} Bxc3+ {[%emt 0:01:28]} 9. bxc3 {[%emt 0:00:19]} O-O {[%emt 0:00:38]} 10. e3 {[%emt 0:01:01]} c5 {[%emt 0:06:00]} 11. c4 {[%emt 0:05:07]} Be6 {[%emt 0:05:07]} 12. cxd5 {[%emt 0:03:19]} Bxd5 {[%emt 0:00:45]} 13. Rc1 {[%emt 0:04:00]} Bxf3 {[%emt 0:08:46]} 14. gxf3 {[%emt 0:00:45]} cxd4 {[%emt 0:00:40]} 15. e4 {[%emt 0:00:47]} Nc6 {[%emt 0:00:41]} 16. h4 {[%emt 0:03:20]} Rfd8 {[%emt 0:01:53]} 17. Bd3 {[%emt 0:00:39]} Ne5 {[%emt 0:01:07]} 18. Rh3 {[%emt 0:00:48]} Qf4 {[%emt 0:01:34]} 19. Ke2 {[%emt 0:07:55]} Rac8 {[%emt 0:02:34]} 20. Rxc8 {[%emt 0:02:40]} Rxc8 {[%emt 0:00:10]} 21. Qa4 {[%emt 0:02:17]} Rc3 {[%emt 0:03:07]} 22. Qe8+ {[%emt 0:03:15]} Kh7 {[%emt 0:00:12]} 23. Bb1 {[%emt 0:01:12]} d3+ {[%emt 0:00:52]} 24. Bxd3 {[%emt 0:01:02]} Rxd3 {[%emt 0:01:03]} 25. Rg3 {[%emt 0:00:40]} Rxf3 {[%emt 0:00:43]} 0-1